[Event "Titled Tuesday Blitz July 25 Late 2023"]
[White "FoxOnTheRun97"]
[Black "Ibarra Jerez, Jose Carlos"]
[BlackFideId "2226332"]
[WhiteElo "2547"]
[BlackElo "2913"]
[Result "0-1"]
[Round "2"]
[TimeControl "180+2"]
[Date "2023.07.25"]
[WhiteClock "0:00:04"]
[BlackClock "0:00:06"]
[Board "30"]

1. Nf3 {[%clk 0:03:00]}  Nf6 {[%clk 0:02:58]} 2. b3 {[%clk 0:03:01]}  d6 {[%clk 0:02:58]} 3. Bb2 {[%clk 0:03:01]}  e5 {[%clk 0:02:58]} 4. c4 {[%clk 0:02:59]}  g6 {[%clk 0:02:57]} 5. g3 {[%clk 0:02:59]}  Bg7 {[%clk 0:02:58]} 6. Bg2 {[%clk 0:02:59]}  O-O {[%clk 0:02:58]} 7. O-O {[%clk 0:02:59]}  Nh5 {[%clk 0:02:54]} 8. d4 {[%clk 0:02:53]}  e4 {[%clk 0:02:53]} 9. Nfd2 {[%clk 0:02:53]}  f5 {[%clk 0:02:49]} 10. e3 {[%clk 0:02:41]}  c5 {[%clk 0:02:49]} 11. Re1 {[%clk 0:02:24]}  Nc6 {[%clk 0:02:48]} 12. Nf1 {[%clk 0:02:23]}  Nb4 {[%clk 0:02:44]} 13. Re2 {[%clk 0:02:13]}  Nd3 {[%clk 0:02:44]} 14. Bc3 {[%clk 0:02:10]}  Qe7 {[%clk 0:02:37]} 15. dxc5 {[%clk 0:02:10]}  dxc5 {[%clk 0:02:36]} 16. Bxg7 {[%clk 0:02:06]}  Qxg7 {[%clk 0:02:35]} 17. Na3 {[%clk 0:02:07]}  a6 {[%clk 0:02:25]} 18. Rd2 {[%clk 0:02:05]}  Be6 {[%clk 0:02:20]} 19. Nc2 {[%clk 0:02:01]}  Rad8 {[%clk 0:02:17]} 20. Ne1 {[%clk 0:02:01]}  b5 {[%clk 0:02:06]} 21. Nxd3 {[%clk 0:01:57]}  exd3 {[%clk 0:02:07]} 22. Rc1 {[%clk 0:01:57]}  f4 {[%clk 0:01:51]} 23. gxf4 {[%clk 0:01:47]}  bxc4 {[%clk 0:01:51]} 24. bxc4 {[%clk 0:01:47]}  Bf5 {[%clk 0:01:42]} 25. Ng3 {[%clk 0:01:47]}  Nxg3 {[%clk 0:01:40]} 26. hxg3 {[%clk 0:01:43]}  Qe7 {[%clk 0:01:36]} 27. Rc3 {[%clk 0:01:30]}  Qe6 {[%clk 0:01:06]} 28. Bd5 {[%clk 0:00:47]}  Rxd5 {[%clk 0:01:05]} 29. cxd5 {[%clk 0:00:47]}  Qd6 {[%clk 0:00:21]} 30. Rdxd3 {[%clk 0:00:45]}  Bxd3 {[%clk 0:00:22]} 31. Qxd3 {[%clk 0:00:45]}  Rb8 {[%clk 0:00:21]} 32. e4 {[%clk 0:00:44]}  Rb4 {[%clk 0:00:19]} 33. e5 {[%clk 0:00:43]}  Qb6 {[%clk 0:00:18]} 34. d6 {[%clk 0:00:42]}  Rd4 {[%clk 0:00:18]} 35. Qf3 {[%clk 0:00:39]}  c4 {[%clk 0:00:17]} 36. Kg2 {[%clk 0:00:39]}  Qc5 {[%clk 0:00:16]} 37. Qa8+ {[%clk 0:00:35]}  Kg7 {[%clk 0:00:16]} 38. Qb7+ {[%clk 0:00:36]}  Kh6 {[%clk 0:00:17]} 39. Qf3 {[%clk 0:00:27]}  a5 {[%clk 0:00:15]} 40. Rc1 {[%clk 0:00:25]}  Rd2 {[%clk 0:00:15]} 41. Rh1+ {[%clk 0:00:22]}  Kg7 {[%clk 0:00:15]} 42. Qb7+ {[%clk 0:00:21]}  Kf8 {[%clk 0:00:15]} 43. Qe7+ {[%clk 0:00:20]}  Kg8 {[%clk 0:00:14]} 44. Qxh7+ {[%clk 0:00:20]}  Kf8 {[%clk 0:00:15]} 45. Qe7+ {[%clk 0:00:18]}  Kg8 {[%clk 0:00:15]} 46. Qe8+ {[%clk 0:00:17]}  Kg7 {[%clk 0:00:15]} 47. Qh8+ {[%clk 0:00:13]}  Kf7 {[%clk 0:00:15]} 48. Rh7+ {[%clk 0:00:13]}  Ke6 {[%clk 0:00:16]} 49. Qg8+ {[%clk 0:00:13]}  Kf5 {[%clk 0:00:17]} 50. Qf7+ {[%clk 0:00:10]}  Ke4 {[%clk 0:00:17]} 51. Qxg6+ {[%clk 0:00:10]}  Kd4 {[%clk 0:00:11]} 52. d7 {[%clk 0:00:09]}  Kc3 {[%clk 0:00:12]} 53. Kh3 {[%clk 0:00:08]}  Qxf2 {[%clk 0:00:11]} 54. Kg4 {[%clk 0:00:07]}  Qe2+ {[%clk 0:00:11]} 55. Kg5 {[%clk 0:00:07]}  Rd3 {[%clk 0:00:09]} 56. g4 {[%clk 0:00:07]}  Kd2 {[%clk 0:00:06]} 57. e6 {[%clk 0:00:06]}  c3 {[%clk 0:00:06]} 58. Qxd3+ {[%clk 0:00:05]}  Qxd3 {[%clk 0:00:06]} 59. d8=Q {[%clk 0:00:05]}  Qxd8+ {[%clk 0:00:05]} 60. Kf5 {[%clk 0:00:04]}  Qd3+ {[%clk 0:00:06]} 61. Kf6 {[%clk 0:00:04]}  Qxh7 {[%clk 0:00:07]} 62. f5 {[%clk 0:00:04]}  c2 {[%clk 0:00:06]} 63. e7 {[%clk 0:00:05]}  Qh8+ {[%clk 0:00:07]} 64. Kf7 {[%clk 0:00:05]}  c1=Q {[%clk 0:00:07]} 65. e8=Q {[%clk 0:00:05]}  Qc4+ {[%clk 0:00:07]} 66. Qe6 {[%clk 0:00:05]}  Qc7+ {[%clk 0:00:07]} 67. Kg6 {[%clk 0:00:04]}  Qcg7# {[%clk 0:00:06]} 0-1


[Site "https://www.chess.com"]

[Event "Titled Tuesday Blitz July 25 Late 2023"]
[White "demon64fields"]
[Black "Jaskolka, Tomasz"]
[BlackFideId "1170791"]
[WhiteElo "2904"]
[BlackElo "2542"]
[Result "1-0"]
[Round "2"]
[TimeControl "180+2"]
[Date "2023.07.25"]
[WhiteClock "0:00:23"]
[BlackClock "0:00:03"]
[Board "32"]

1. e4 {[%clk 0:02:59]}  d5 {[%clk 0:02:59]} 2. exd5 {[%clk 0:02:58]}  Nf6 {[%clk 0:03:00]} 3. Bb5+ {[%clk 0:02:55]}  Nbd7 {[%clk 0:03:00]} 4. d4 {[%clk 0:02:49]}  a6 {[%clk 0:02:56]} 5. Be2 {[%clk 0:02:47]}  Nxd5 {[%clk 0:02:55]} 6. c4 {[%clk 0:02:46]}  N5f6 {[%clk 0:02:56]} 7. Nf3 {[%clk 0:02:46]}  e6 {[%clk 0:02:56]} 8. O-O {[%clk 0:02:44]}  Be7 {[%clk 0:02:56]} 9. Qc2 {[%clk 0:02:43]}  b6 {[%clk 0:02:55]} 10. Rd1 {[%clk 0:02:43]}  Bb7 {[%clk 0:02:56]} 11. Nc3 {[%clk 0:02:43]}  O-O {[%clk 0:02:55]} 12. Bf4 {[%clk 0:02:41]}  Bd6 {[%clk 0:02:48]} 13. Ne5 {[%clk 0:02:41]}  Qe7 {[%clk 0:02:43]} 14. Bg3 {[%clk 0:02:40]}  Rfd8 {[%clk 0:02:36]} 15. Rd2 {[%clk 0:02:13]}  c5 {[%clk 0:02:26]} 16. Nxd7 {[%clk 0:02:12]}  Rxd7 {[%clk 0:02:25]} 17. Rad1 {[%clk 0:02:07]}  Bxg3 {[%clk 0:02:24]} 18. hxg3 {[%clk 0:02:05]}  Rad8 {[%clk 0:02:17]} 19. dxc5 {[%clk 0:02:03]}  Qxc5 {[%clk 0:02:13]} 20. Rxd7 {[%clk 0:02:00]}  Rxd7 {[%clk 0:02:14]} 21. Rxd7 {[%clk 0:02:00]}  Nxd7 {[%clk 0:02:15]} 22. Qd2 {[%clk 0:01:59]}  Qc7 {[%clk 0:02:05]} 23. b4 {[%clk 0:01:59]}  g6 {[%clk 0:02:04]} 24. Qd4 {[%clk 0:01:56]}  Bc6 {[%clk 0:01:31]} 25. f4 {[%clk 0:01:48]}  e5 {[%clk 0:01:25]} 26. Qe3 {[%clk 0:01:46]}  Qd6 {[%clk 0:01:20]} 27. a3 {[%clk 0:01:45]}  Qd4 {[%clk 0:01:14]} 28. Kf2 {[%clk 0:01:40]}  Nf6 {[%clk 0:00:57]} 29. fxe5 {[%clk 0:01:33]}  Qxc3 {[%clk 0:00:56]} 30. exf6 {[%clk 0:01:30]}  Qxf6+ {[%clk 0:00:56]} 31. Kg1 {[%clk 0:01:26]}  Bb7 {[%clk 0:00:43]} 32. Kh2 {[%clk 0:01:22]}  Kg7 {[%clk 0:00:42]} 33. c5 {[%clk 0:01:22]}  bxc5 {[%clk 0:00:42]} 34. Qxc5 {[%clk 0:01:21]}  Qb2 {[%clk 0:00:37]} 35. Qe3 {[%clk 0:01:19]}  Bc6 {[%clk 0:00:33]} 36. g4 {[%clk 0:01:16]}  h6 {[%clk 0:00:33]} 37. Kg3 {[%clk 0:01:15]}  Bb7 {[%clk 0:00:28]} 38. Bf3 {[%clk 0:01:07]}  Bxf3 {[%clk 0:00:28]} 39. gxf3 {[%clk 0:01:08]}  Qa1 {[%clk 0:00:29]} 40. Qd3 {[%clk 0:01:02]}  Qg1+ {[%clk 0:00:28]} 41. Kf4 {[%clk 0:01:00]}  Qh2+ {[%clk 0:00:22]} 42. Ke4 {[%clk 0:00:58]}  Kf6 {[%clk 0:00:18]} 43. Qxa6+ {[%clk 0:00:57]}  Kg5 {[%clk 0:00:17]} 44. Qb5+ {[%clk 0:00:47]}  f5+ {[%clk 0:00:18]} 45. gxf5 {[%clk 0:00:46]}  Qf4+ {[%clk 0:00:19]} 46. Kd5 {[%clk 0:00:41]}  Qxf5+ {[%clk 0:00:16]} 47. Kc6 {[%clk 0:00:38]}  Qxb5+ {[%clk 0:00:16]} 48. Kxb5 {[%clk 0:00:37]}  h5 {[%clk 0:00:17]} 49. a4 {[%clk 0:00:28]}  h4 {[%clk 0:00:17]} 50. a5 {[%clk 0:00:28]}  h3 {[%clk 0:00:18]} 51. a6 {[%clk 0:00:29]}  h2 {[%clk 0:00:18]} 52. a7 {[%clk 0:00:30]}  h1=Q {[%clk 0:00:19]} 53. a8=Q {[%clk 0:00:31]}  Qf1+ {[%clk 0:00:19]} 54. Kb6 {[%clk 0:00:28]}  Qf2+ {[%clk 0:00:19]} 55. Kc7 {[%clk 0:00:27]}  Qc2+ {[%clk 0:00:20]} 56. Qc6 {[%clk 0:00:27]}  Qb3 {[%clk 0:00:15]} 57. b5 {[%clk 0:00:27]}  Qf7+ {[%clk 0:00:14]} 58. Kb6 {[%clk 0:00:26]}  Qb3 {[%clk 0:00:09]} 59. Kb7 {[%clk 0:00:25]}  Kf4 {[%clk 0:00:08]} 60. b6 {[%clk 0:00:26]}  g5 {[%clk 0:00:08]} 61. Kb8 {[%clk 0:00:25]}  Qg8+ {[%clk 0:00:07]} 62. Ka7 {[%clk 0:00:25]}  Qa2+ {[%clk 0:00:07]} 63. Kb7 {[%clk 0:00:25]}  Qb3 {[%clk 0:00:08]} 64. Qf6+ {[%clk 0:00:23]}  Kg3 {[%clk 0:00:06]} 65. Qxg5+ {[%clk 0:00:23]}  Kxf3 {[%clk 0:00:07]} 66. Qf6+ {[%clk 0:00:23]}  Ke4 {[%clk 0:00:07]} 67. Kc7 {[%clk 0:00:23]}  Qb5 {[%clk 0:00:03]} 68. Qc6+ {[%clk 0:00:24]}  Qd5 {[%clk 0:00:03]} 69. b7 {[%clk 0:00:23]} 1-0


[Site "https://www.chess.com"]

[Event "Titled Tuesday Blitz July 25 Late 2023"]
[White "Maksimovic, Bojan"]
[Black "Fiorito, Francisco"]
[WhiteFideId "14408120"]
[BlackFideId "180165"]
[WhiteElo "2893"]
[BlackElo "2540"]
[Result "1-0"]
[Round "2"]
[TimeControl "180+2"]
[Date "2023.07.25"]
[WhiteClock "0:00:57"]
[BlackClock "0:00:05"]
[Board "33"]

1. e4 {[%clk 0:03:00]}  e5 {[%clk 0:02:57]} 2. Nf3 {[%clk 0:03:00]}  Nf6 {[%clk 0:02:56]} 3. Nxe5 {[%clk 0:03:00]}  d6 {[%clk 0:02:56]} 4. Nf3 {[%clk 0:03:00]}  Nxe4 {[%clk 0:02:56]} 5. d4 {[%clk 0:03:01]}  d5 {[%clk 0:02:56]} 6. Bd3 {[%clk 0:03:01]}  Be7 {[%clk 0:02:56]} 7. O-O {[%clk 0:03:02]}  Nc6 {[%clk 0:02:57]} 8. c3 {[%clk 0:03:01]}  O-O {[%clk 0:02:56]} 9. Nbd2 {[%clk 0:03:00]}  Nxd2 {[%clk 0:02:48]} 10. Bxd2 {[%clk 0:03:01]}  Bg4 {[%clk 0:02:47]} 11. h3 {[%clk 0:03:00]}  Bh5 {[%clk 0:02:47]} 12. Re1 {[%clk 0:02:59]}  Re8 {[%clk 0:02:34]} 13. g3 {[%clk 0:02:58]}  a6 {[%clk 0:02:25]} 14. Kg2 {[%clk 0:02:57]}  Bg6 {[%clk 0:02:17]} 15. Bxg6 {[%clk 0:02:56]}  hxg6 {[%clk 0:02:18]} 16. Qb3 {[%clk 0:02:53]}  Na5 {[%clk 0:02:07]} 17. Qc2 {[%clk 0:02:53]}  Nc4 {[%clk 0:02:07]} 18. h4 {[%clk 0:02:50]}  Qd7 {[%clk 0:02:04]} 19. b3 {[%clk 0:02:46]}  Nd6 {[%clk 0:01:58]} 20. Bf4 {[%clk 0:02:43]}  Ne4 {[%clk 0:01:56]} 21. c4 {[%clk 0:02:42]}  c6 {[%clk 0:01:56]} 22. Ne5 {[%clk 0:02:42]}  Qf5 {[%clk 0:01:50]} 23. Rac1 {[%clk 0:02:30]}  Ba3 {[%clk 0:01:48]} 24. f3 {[%clk 0:02:25]}  Nd6 {[%clk 0:01:26]} 25. Qxf5 {[%clk 0:02:18]}  Nxf5 {[%clk 0:01:24]} 26. Rcd1 {[%clk 0:02:09]}  Bb2 {[%clk 0:01:22]} 27. Be3 {[%clk 0:02:05]}  f6 {[%clk 0:01:20]} 28. Ng4 {[%clk 0:02:05]}  Bc3 {[%clk 0:01:15]} 29. Re2 {[%clk 0:01:56]}  Bxd4 {[%clk 0:01:11]} 30. Kf2 {[%clk 0:01:38]}  Nxe3 {[%clk 0:00:42]} 31. Nxe3 {[%clk 0:01:17]}  Rxe3 {[%clk 0:00:39]} 32. Rxe3 {[%clk 0:01:17]}  Bxe3+ {[%clk 0:00:37]} 33. Kxe3 {[%clk 0:01:18]}  Re8+ {[%clk 0:00:37]} 34. Kd4 {[%clk 0:01:12]}  Re5 {[%clk 0:00:30]} 35. f4 {[%clk 0:01:08]}  Re2 {[%clk 0:00:26]} 36. cxd5 {[%clk 0:01:03]}  cxd5 {[%clk 0:00:25]} 37. a4 {[%clk 0:01:04]}  Re7 {[%clk 0:00:17]} 38. Kc5 {[%clk 0:00:59]}  Rc7+ {[%clk 0:00:17]} 39. Kb6 {[%clk 0:00:59]}  Rd7 {[%clk 0:00:12]} 40. Kc5 {[%clk 0:00:56]}  Rc7+ {[%clk 0:00:11]} 41. Kb6 {[%clk 0:00:57]}  Rc3 {[%clk 0:00:10]} 42. b4 {[%clk 0:00:57]}  Rb3 {[%clk 0:00:10]} 43. Rd4 {[%clk 0:00:57]}  Ra3 {[%clk 0:00:10]} 44. a5 {[%clk 0:00:57]}  Rxg3 {[%clk 0:00:08]} 45. Kxb7 {[%clk 0:00:58]}  g5 {[%clk 0:00:05]} 46. hxg5 {[%clk 0:00:58]}  fxg5 {[%clk 0:00:06]} 47. fxg5 {[%clk 0:00:58]}  Rxg5 {[%clk 0:00:07]} 48. Kxa6 {[%clk 0:00:56]}  Re5 {[%clk 0:00:07]} 49. b5 {[%clk 0:00:56]}  g5 {[%clk 0:00:06]} 50. b6 {[%clk 0:00:57]}  Kf7 {[%clk 0:00:06]} 51. b7 {[%clk 0:00:57]}  Re8 {[%clk 0:00:07]} 52. Rxd5 {[%clk 0:00:57]}  g4 {[%clk 0:00:07]} 53. Rg5 {[%clk 0:00:57]}  Rg8 {[%clk 0:00:05]} 54. Rxg8 {[%clk 0:00:57]} 1-0


[Site "https://www.chess.com"]

[Event "Titled Tuesday Blitz July 25 Late 2023"]
[White "Janaszak, Dawid"]
[Black "Grigoriants, Sergey"]
[WhiteFideId "1119206"]
[BlackFideId "4130804"]
[WhiteElo "2540"]
[BlackElo "2892"]
[Result "0-1"]
[Round "2"]
[TimeControl "180+2"]
[Date "2023.07.25"]
[WhiteClock "0:00:06"]
[BlackClock "0:00:10"]
[Board "34"]

1. e4 {[%clk 0:03:00]}  e6 {[%clk 0:02:56]} 2. d4 {[%clk 0:02:58]}  d5 {[%clk 0:02:56]} 3. Bd3 {[%clk 0:02:59]}  dxe4 {[%clk 0:02:54]} 4. Bxe4 {[%clk 0:03:00]}  Nf6 {[%clk 0:02:54]} 5. Bf3 {[%clk 0:03:00]}  Be7 {[%clk 0:02:48]} 6. Nc3 {[%clk 0:02:56]}  O-O {[%clk 0:02:47]} 7. Nge2 {[%clk 0:02:53]}  Nbd7 {[%clk 0:02:39]} 8. Bf4 {[%clk 0:02:51]}  c6 {[%clk 0:02:36]} 9. O-O {[%clk 0:02:45]}  Nd5 {[%clk 0:02:33]} 10. Bg3 {[%clk 0:02:37]}  b6 {[%clk 0:02:33]} 11. Nxd5 {[%clk 0:02:29]}  cxd5 {[%clk 0:02:28]} 12. c4 {[%clk 0:02:16]}  Nf6 {[%clk 0:02:27]} 13. Rc1 {[%clk 0:02:01]}  Ba6 {[%clk 0:02:18]} 14. c5 {[%clk 0:01:40]}  bxc5 {[%clk 0:02:01]} 15. dxc5 {[%clk 0:01:40]}  Qa5 {[%clk 0:02:00]} 16. Qe1 {[%clk 0:01:18]}  Qxa2 {[%clk 0:01:36]} 17. Ra1 {[%clk 0:01:15]}  Qc4 {[%clk 0:01:36]} 18. Qa5 {[%clk 0:01:01]}  Bb7 {[%clk 0:00:46]} 19. Qc7 {[%clk 0:01:00]}  Qxc5 {[%clk 0:00:31]} 20. Qxb7 {[%clk 0:00:58]}  a5 {[%clk 0:00:15]} 21. Rfc1 {[%clk 0:00:57]}  Qb4 {[%clk 0:00:15]} 22. Rc7 {[%clk 0:00:35]}  Rfb8 {[%clk 0:00:10]} 23. Qxb4 {[%clk 0:00:28]}  Bxb4 {[%clk 0:00:11]} 24. Nd4 {[%clk 0:00:24]}  g5 {[%clk 0:00:10]} 25. Nc6 {[%clk 0:00:24]}  Rc8 {[%clk 0:00:07]} 26. Nxb4 {[%clk 0:00:21]}  axb4 {[%clk 0:00:07]} 27. Rxc8+ {[%clk 0:00:20]}  Rxc8 {[%clk 0:00:08]} 28. h3 {[%clk 0:00:18]}  h5 {[%clk 0:00:03]} 29. Ra4 {[%clk 0:00:17]}  g4 {[%clk 0:00:03]} 30. hxg4 {[%clk 0:00:16]}  hxg4 {[%clk 0:00:04]} 31. Be2 {[%clk 0:00:15]}  Rc1+ {[%clk 0:00:03]} 32. Kh2 {[%clk 0:00:15]}  Rc2 {[%clk 0:00:04]} 33. Be5 {[%clk 0:00:10]}  Rxe2 {[%clk 0:00:03]} 34. Ra8+ {[%clk 0:00:09]}  Kg7 {[%clk 0:00:02]} 35. Bd4 {[%clk 0:00:09]}  e5 {[%clk 0:00:02]} 36. Bc5 {[%clk 0:00:09]}  Kg6 {[%clk 0:00:02]} 37. Bxb4 {[%clk 0:00:09]}  Kf5 {[%clk 0:00:02]} 38. Ba3 {[%clk 0:00:08]}  d4 {[%clk 0:00:03]} 39. Rd8 {[%clk 0:00:08]}  Rxf2 {[%clk 0:00:03]} 40. Kg3 {[%clk 0:00:07]}  Rc2 {[%clk 0:00:03]} 41. b4 {[%clk 0:00:06]}  Ne4+ {[%clk 0:00:04]} 42. Kh2 {[%clk 0:00:05]}  f6 {[%clk 0:00:05]} 43. b5 {[%clk 0:00:05]}  Rc3 {[%clk 0:00:05]} 44. Be7 {[%clk 0:00:05]}  Rb3 {[%clk 0:00:05]} 45. Rb8 {[%clk 0:00:05]}  Ke6 {[%clk 0:00:05]} 46. Bf8 {[%clk 0:00:04]}  d3 {[%clk 0:00:06]} 47. b6 {[%clk 0:00:05]}  d2 {[%clk 0:00:06]} 48. Rd8 {[%clk 0:00:05]}  Rxb6 {[%clk 0:00:06]} 49. Bh6 {[%clk 0:00:06]}  Kf5 {[%clk 0:00:06]} 50. Bxd2 {[%clk 0:00:06]}  Nxd2 {[%clk 0:00:06]} 51. Rxd2 {[%clk 0:00:07]}  Rb3 {[%clk 0:00:06]} 52. Rf2+ {[%clk 0:00:07]}  Kg5 {[%clk 0:00:07]} 53. Rc2 {[%clk 0:00:07]}  f5 {[%clk 0:00:07]} 54. Rc8 {[%clk 0:00:08]}  f4 {[%clk 0:00:07]} 55. Re8 {[%clk 0:00:09]}  Kf5 {[%clk 0:00:08]} 56. Rf8+ {[%clk 0:00:09]}  Ke4 {[%clk 0:00:08]} 57. Rg8 {[%clk 0:00:09]}  g3+ {[%clk 0:00:09]} 58. Kh3 {[%clk 0:00:08]}  Rb1 {[%clk 0:00:10]} 59. Re8 {[%clk 0:00:07]}  Rh1+ {[%clk 0:00:09]} 60. Kg4 {[%clk 0:00:08]}  Rh2 {[%clk 0:00:10]} 61. Rd8 {[%clk 0:00:06]}  Rxg2 {[%clk 0:00:10]} 0-1


[Site "https://www.chess.com"]

[Event "Titled Tuesday Blitz July 25 Late 2023"]
[White "Martins, Bruno Andre Leite"]
[Black "Lenderman, Aleksandr"]
[WhiteFideId "1942255"]
[BlackFideId "2021285"]
[WhiteElo "2537"]
[BlackElo "2883"]
[Result "0-1"]
[Round "2"]
[TimeControl "180+2"]
[Date "2023.07.25"]
[WhiteClock "0:00:00"]
[BlackClock "0:00:04"]
[Board "36"]

1. d4 {[%clk 0:03:00]}  e6 {[%clk 0:02:57]} 2. e4 {[%clk 0:02:59]}  d5 {[%clk 0:02:55]} 3. exd5 {[%clk 0:02:54]}  exd5 {[%clk 0:02:55]} 4. Nf3 {[%clk 0:02:49]}  Nc6 {[%clk 0:02:50]} 5. Bb5 {[%clk 0:02:48]}  Bd6 {[%clk 0:02:50]} 6. c4 {[%clk 0:02:47]}  dxc4 {[%clk 0:02:49]} 7. d5 {[%clk 0:02:48]}  a6 {[%clk 0:02:49]} 8. Ba4 {[%clk 0:02:48]}  b5 {[%clk 0:02:48]} 9. dxc6 {[%clk 0:02:49]}  bxa4 {[%clk 0:02:49]} 10. O-O {[%clk 0:02:49]}  Ne7 {[%clk 0:02:48]} 11. Nbd2 {[%clk 0:02:49]}  Nxc6 {[%clk 0:02:20]} 12. Nxc4 {[%clk 0:02:47]}  O-O {[%clk 0:02:18]} 13. Nxd6 {[%clk 0:02:37]}  Qxd6 {[%clk 0:02:16]} 14. Qxd6 {[%clk 0:02:35]}  cxd6 {[%clk 0:02:16]} 15. Bf4 {[%clk 0:02:34]}  Bg4 {[%clk 0:02:06]} 16. Bxd6 {[%clk 0:02:25]}  Rfd8 {[%clk 0:02:06]} 17. Rfd1 {[%clk 0:02:24]}  Bxf3 {[%clk 0:02:06]} 18. gxf3 {[%clk 0:02:24]}  Rd7 {[%clk 0:02:00]} 19. Rac1 {[%clk 0:02:20]}  Nd8 {[%clk 0:01:58]} 20. Ba3 {[%clk 0:02:13]}  Rxd1+ {[%clk 0:01:57]} 21. Rxd1 {[%clk 0:02:14]}  Ne6 {[%clk 0:01:58]} 22. Kg2 {[%clk 0:02:06]}  g5 {[%clk 0:01:57]} 23. Kg3 {[%clk 0:02:06]}  Kg7 {[%clk 0:01:56]} 24. h4 {[%clk 0:01:58]}  gxh4+ {[%clk 0:01:51]} 25. Kxh4 {[%clk 0:01:59]}  Rc8 {[%clk 0:01:51]} 26. Rd5 {[%clk 0:01:54]}  Rc4+ {[%clk 0:01:50]} 27. Kg3 {[%clk 0:01:53]}  Kg6 {[%clk 0:01:46]} 28. Ra5 {[%clk 0:01:51]}  h5 {[%clk 0:01:45]} 29. Be7 {[%clk 0:01:44]}  Rc2 {[%clk 0:01:21]} 30. Rxa4 {[%clk 0:01:34]}  Rxb2 {[%clk 0:01:20]} 31. Rxa6 {[%clk 0:01:34]}  Rb1 {[%clk 0:01:13]} 32. a4 {[%clk 0:01:26]}  Rg1+ {[%clk 0:01:13]} 33. Kh2 {[%clk 0:01:25]}  Ra1 {[%clk 0:01:13]} 34. a5 {[%clk 0:01:18]}  Ra4 {[%clk 0:01:10]} 35. Ra8 {[%clk 0:01:16]}  f6 {[%clk 0:01:04]} 36. Ra6 {[%clk 0:01:12]}  Kf5 {[%clk 0:01:04]} 37. Ra8 {[%clk 0:01:09]}  h4 {[%clk 0:01:03]} 38. Ra6 {[%clk 0:00:53]}  Ra2 {[%clk 0:00:56]} 39. Kh3 {[%clk 0:00:44]}  Ra4 {[%clk 0:00:53]} 40. Bd6 {[%clk 0:00:32]}  Ng5+ {[%clk 0:00:51]} 41. Kg2 {[%clk 0:00:27]}  h3+ {[%clk 0:00:51]} 42. Kg3 {[%clk 0:00:27]}  Ra1 {[%clk 0:00:50]} 43. Kh4 {[%clk 0:00:06]}  Rg1 {[%clk 0:00:18]} 44. Rb6 {[%clk 0:00:04]}  Rg2 {[%clk 0:00:11]} 45. a6 {[%clk 0:00:04]}  h2 {[%clk 0:00:12]} 46. Bxh2 {[%clk 0:00:03]}  Rxh2+ {[%clk 0:00:12]} 47. Kg3 {[%clk 0:00:04]}  Rh3+ {[%clk 0:00:12]} 48. Kg2 {[%clk 0:00:04]}  Rh8 {[%clk 0:00:13]} 49. a7 {[%clk 0:00:04]}  Ra8 {[%clk 0:00:13]} 50. Rb7 {[%clk 0:00:04]}  Ne6 {[%clk 0:00:13]} 51. Kg3 {[%clk 0:00:05]}  Nd4 {[%clk 0:00:11]} 52. Rc7 {[%clk 0:00:03]}  Ne2+ {[%clk 0:00:11]} 53. Kg2 {[%clk 0:00:02]}  Nf4+ {[%clk 0:00:11]} 54. Kg3 {[%clk 0:00:03]}  Rg8+ {[%clk 0:00:11]} 55. Kh2 {[%clk 0:00:02]}  Rh8+ {[%clk 0:00:09]} 56. Kg3 {[%clk 0:00:02]}  Ne2+ {[%clk 0:00:09]} 57. Kg2 {[%clk 0:00:02]}  Ra8 {[%clk 0:00:10]} 58. Rd7 {[%clk 0:00:02]}  Ke6 {[%clk 0:00:09]} 59. Rb7 {[%clk 0:00:02]}  Nd4 {[%clk 0:00:08]} 60. Rb6+ {[%clk 0:00:02]}  Ke5 {[%clk 0:00:07]} 61. Rb7 {[%clk 0:00:02]}  Nc6 {[%clk 0:00:08]} 62. Rb6 {[%clk 0:00:01]}  Kd6 {[%clk 0:00:08]} 63. Ra6 {[%clk 0:00:02]}  Rxa7 {[%clk 0:00:08]} 64. Rb6 {[%clk 0:00:03]}  Rg7+ {[%clk 0:00:07]} 65. Kf1 {[%clk 0:00:02]}  Kd5 {[%clk 0:00:07]} 66. Rb2 {[%clk 0:00:03]}  Nd4 {[%clk 0:00:07]} 67. Rd2 {[%clk 0:00:04]}  Ke5 {[%clk 0:00:08]} 68. Rd3 {[%clk 0:00:04]}  Ra7 {[%clk 0:00:05]} 69. Re3+ {[%clk 0:00:05]}  Kf5 {[%clk 0:00:05]} 70. Rd3 {[%clk 0:00:04]}  Ne6 {[%clk 0:00:05]} 71. Rc3 {[%clk 0:00:03]}  Nf4 {[%clk 0:00:05]} 72. Kg1 {[%clk 0:00:00]}  Ne2+ {[%clk 0:00:04]} 0-1


[Site "https://www.chess.com"]

[Event "Titled Tuesday Blitz July 25 Late 2023"]
[White "Suder, Jakub"]
[Black "Zhigalko, Sergei"]
[WhiteFideId "1195310"]
[BlackFideId "13502956"]
[WhiteElo "2531"]
[BlackElo "2875"]
[Result "0-1"]
[Round "2"]
[TimeControl "180+2"]
[Date "2023.07.25"]
[WhiteClock "0:00:01"]
[BlackClock "0:00:03"]
[Board "39"]

1. d4 {[%clk 0:03:00]}  Nf6 {[%clk 0:02:59]} 2. c4 {[%clk 0:03:01]}  e6 {[%clk 0:02:58]} 3. Nc3 {[%clk 0:03:01]}  Bb4 {[%clk 0:02:58]} 4. Qb3 {[%clk 0:03:00]}  c5 {[%clk 0:02:52]} 5. dxc5 {[%clk 0:02:59]}  Bxc5 {[%clk 0:02:48]} 6. Nf3 {[%clk 0:02:57]}  O-O {[%clk 0:02:47]} 7. Bg5 {[%clk 0:02:57]}  Be7 {[%clk 0:02:44]} 8. e3 {[%clk 0:02:57]}  d6 {[%clk 0:02:42]} 9. Rd1 {[%clk 0:02:56]}  Nbd7 {[%clk 0:02:41]} 10. Qc2 {[%clk 0:02:54]}  b6 {[%clk 0:02:32]} 11. Be2 {[%clk 0:02:54]}  Bb7 {[%clk 0:02:32]} 12. O-O {[%clk 0:02:54]}  a6 {[%clk 0:02:31]} 13. h3 {[%clk 0:02:47]}  Qc7 {[%clk 0:02:30]} 14. Qd2 {[%clk 0:02:39]}  Rfd8 {[%clk 0:02:26]} 15. Bf4 {[%clk 0:02:38]}  Nc5 {[%clk 0:02:26]} 16. Bh2 {[%clk 0:02:29]}  Rac8 {[%clk 0:02:24]} 17. Rc1 {[%clk 0:02:24]}  Qb8 {[%clk 0:02:23]} 18. Nd4 {[%clk 0:02:21]}  Qa8 {[%clk 0:02:22]} 19. Bf3 {[%clk 0:02:21]}  Nfe4 {[%clk 0:02:17]} 20. Nxe4 {[%clk 0:02:21]}  Nxe4 {[%clk 0:02:18]} 21. Qb4 {[%clk 0:02:14]}  Qa7 {[%clk 0:01:22]} 22. Rfd1 {[%clk 0:02:13]}  h6 {[%clk 0:01:20]} 23. Qa3 {[%clk 0:01:58]}  Rd7 {[%clk 0:01:04]} 24. Nb5 {[%clk 0:01:54]}  Qa8 {[%clk 0:01:04]} 25. Nd4 {[%clk 0:01:30]}  d5 {[%clk 0:01:04]} 26. Qb3 {[%clk 0:01:26]}  Ng5 {[%clk 0:00:53]} 27. Qxb6 {[%clk 0:01:03]}  Bc5 {[%clk 0:00:50]} 28. Qa5 {[%clk 0:01:01]}  Bxd4 {[%clk 0:00:46]} 29. Rxd4 {[%clk 0:01:00]}  Nxf3+ {[%clk 0:00:41]} 30. gxf3 {[%clk 0:00:59]}  f6 {[%clk 0:00:16]} 31. Rcd1 {[%clk 0:00:52]}  e5 {[%clk 0:00:15]} 32. Rg4 {[%clk 0:00:52]}  Rcd8 {[%clk 0:00:07]} 33. c5 {[%clk 0:00:39]}  d4 {[%clk 0:00:06]} 34. e4 {[%clk 0:00:34]}  Bc6 {[%clk 0:00:04]} 35. Qa3 {[%clk 0:00:27]}  Kh7 {[%clk 0:00:04]} 36. f4 {[%clk 0:00:26]}  Bxe4 {[%clk 0:00:03]} 37. Rd2 {[%clk 0:00:10]}  Bf5 {[%clk 0:00:02]} 38. Rg2 {[%clk 0:00:08]}  e4 {[%clk 0:00:02]} 39. Qg3 {[%clk 0:00:07]}  Qd5 {[%clk 0:00:02]} 40. b4 {[%clk 0:00:06]}  Qc4 {[%clk 0:00:02]} 41. Rd1 {[%clk 0:00:04]}  Qc2 {[%clk 0:00:02]} 42. Rf1 {[%clk 0:00:01]}  d3 {[%clk 0:00:02]} 43. Qe3 {[%clk 0:00:01]}  d2 {[%clk 0:00:02]} 44. c6 {[%clk 0:00:02]}  Qxc6 {[%clk 0:00:02]} 45. Rd1 {[%clk 0:00:01]}  Qc2 {[%clk 0:00:02]} 46. Qe2 {[%clk 0:00:02]}  Rc8 {[%clk 0:00:02]} 47. Kh1 {[%clk 0:00:02]}  Qxd1+ {[%clk 0:00:02]} 48. Qxd1 {[%clk 0:00:03]}  Rc1 {[%clk 0:00:03]} 49. Rg1 {[%clk 0:00:03]}  Rxd1 {[%clk 0:00:03]} 50. Rxd1 {[%clk 0:00:04]}  Bxh3 {[%clk 0:00:03]} 51. f5 {[%clk 0:00:02]}  Bg4 {[%clk 0:00:04]} 52. Bf4 {[%clk 0:00:01]}  Bxd1 {[%clk 0:00:03]} 0-1


[Site "https://www.chess.com"]